fUST/lending_fUST_20260510
["ID","MTS","AMOUNT","RATE_DAILY","PERIOD"]
[421987556,1778413838000,-1753.6830432,6.992e-05,2]
[421987559,1778413838000,-382.95284775,7.316e-05,2]
[421987558,1778413838000,-325.715688,7.143e-05,2]
[421987557,1778413838000,-5000.0,7.063e-05,2]
[421987562,1778413838000,-1200.0,7.847e-05,2]
[421987561,1778413838000,-151.0,7.705e-05,2]
[421987565,1778413838000,-500.0,7.849e-05,2]
[421987560,1778413838000,-151.0,7.705e-05,2]
[421987564,1778413838000,-500.0,7.849e-05,2]
[421987566,1778413838000,-500.0,7.849e-05,2]
[421987568,1778413838000,-500.0,7.849e-05,2]
[421987563,1778413838000,-300.0,7.848e-05,2]
[421987569,1778413838000,-500.0,7.849e-05,2]
[421987571,1778413838000,-1689.72065281,7.85e-05,2]
[421987570,1778413838000,-14488.52840859,7.85e-05,2]
[421987572,1778413838000,-33362.5839164,7.85e-05,2]
[421987567,1778413838000,-224.86635121,7.849e-05,2]
[421987585,1778413840000,-2936.42643806,7.85e-05,2]
[421987583,1778413840000,-1604.14,7.85e-05,2]
[421987584,1778413840000,-5339.53196822,7.85e-05,2]
[421987598,1778413843000,-1999.3,7.85e-05,2]
[421987597,1778413843000,-31881.37993903,7.85e-05,2]
[421987604,1778413846000,-1457.10102313,7.85e-05,2]
[421987607,1778413846000,-27314.69064759,7.85e-05,2]
[421987606,1778413846000,-6464.97352158,7.85e-05,2]
[421987605,1778413846000,-2466.08903906,7.85e-05,2]
[421987720,1778415038000,-300.0,7.285e-05,2]
[421987718,1778415038000,-300.0,7.285e-05,2]
[421987716,1778415038000,-300.0,7.285e-05,2]
[421987709,1778415038000,-456.3760811,7.143e-05,2]
[421987715,1778415038000,-300.0,7.285e-05,2]
[421987714,1778415038000,-300.0,7.285e-05,2]
[421987713,1778415038000,-300.0,7.285e-05,2]
[421987712,1778415038000,-300.0,7.285e-05,2]
[421987711,1778415038000,-300.0,7.285e-05,2]
[421987710,1778415038000,-300.0,7.285e-05,2]
[421987706,1778415038000,-300.0,7.141e-05,2]
[421987702,1778415038000,-1000.0,6.657e-05,2]
[421987700,1778415038000,-1424.51298498,6.525e-05,2]
[421987707,1778415038000,-300.0,7.141e-05,2]
[421987701,1778415038000,-382.63262311,6.558e-05,2]
[421987708,1778415038000,-300.0,7.141e-05,2]
[421987705,1778415038000,-300.0,7.141e-05,2]
[421987717,1778415038000,-300.0,7.285e-05,2]
[421987704,1778415038000,-151.0,7.137e-05,2]
[421987699,1778415038000,-5000.0,6.46e-05,2]
[421987698,1778415038000,-4780.82975148,6.395e-05,2]
[421987703,1778415038000,-325.7020745,7.137e-05,2]
[421987719,1778415038000,-300.0,7.285e-05,2]
[421987740,1778415038000,-52211.04229876,7.55e-05,2]
[421987721,1778415038000,-300.0,7.285e-05,2]
[421987722,1778415038000,-300.0,7.285e-05,2]
[421987742,1778415038000,-17226.94880536,7.55e-05,2]
[421987744,1778415038000,-31019.13530686,7.55e-05,2]
[421987743,1778415038000,-3238.28883582,7.55e-05,2]
[421987739,1778415038000,-500.0,7.549e-05,2]
[421987738,1778415038000,-500.0,7.549e-05,2]
[421987737,1778415038000,-500.0,7.549e-05,2]
[421987736,1778415038000,-500.0,7.549e-05,2]
[421987734,1778415038000,-500.0,7.549e-05,2]
[421987735,1778415038000,-500.0,7.549e-05,2]
[421987741,1778415038000,-6895.17028341,7.55e-05,2]
[421987730,1778415038000,-500.0,7.549e-05,2]
[421987732,1778415038000,-500.0,7.549e-05,2]
[421987724,1778415038000,-300.0,7.285e-05,2]
[421987725,1778415038000,-500.0,7.549e-05,2]
[421987723,1778415038000,-300.0,7.285e-05,2]
[421987726,1778415038000,-500.0,7.549e-05,2]
[421987728,1778415038000,-500.0,7.549e-05,2]
[421987731,1778415038000,-500.0,7.549e-05,2]
[421987733,1778415038000,-500.0,7.549e-05,2]
[421987729,1778415038000,-265.45636515,7.549e-05,2]
[421987727,1778415038000,-500.0,7.549e-05,2]
[421987760,1778415040000,-544.22752634,7.55e-05,2]
[421987775,1778415044000,-500.0,7.647e-05,2]
[421987772,1778415044000,-726.88975277,7.6e-05,2]
[421987771,1778415044000,-26188.26350363,7.55e-05,2]
[421987773,1778415044000,-1355.33132328,7.6e-05,2]
[421987774,1778415044000,-500.0,7.647e-05,2]
[421987780,1778415044000,-2734.30346923,7.648e-05,2]
[421987776,1778415044000,-500.0,7.647e-05,2]
[421987777,1778415044000,-500.0,7.647e-05,2]
[421987779,1778415044000,-8897.84532763,7.648e-05,2]
[421987781,1778415044000,-2287.82511158,7.648e-05,2]
[421987778,1778415044000,-220.18491374,7.647e-05,2]
[421987786,1778415046000,-896.75205161,7.648e-05,2]
[421987788,1778415046000,-7808.74716448,7.648e-05,2]
[421987789,1778415046000,-785.90876817,7.648e-05,2]
[421987791,1778415046000,-55781.76913549,7.648e-05,2]
[421987790,1778415046000,-2452.93688462,7.648e-05,2]
[421987787,1778415046000,-14358.69197532,7.648e-05,2]
[421987793,1778415232000,94618.04009336,0.0001917,120]
[421987905,1778416238000,-2841.65,6.252e-05,2]
[421987968,1778416240000,-221.9581376,7.139e-05,2]
[421987965,1778416240000,-382.52340011,6.62e-05,2]
[421987967,1778416240000,-151.0,7.139e-05,2]
[421987966,1778416240000,-456.0731841,7.137e-05,2]
[421987964,1778416240000,-325.7824685,6.315e-05,2]
[421987963,1778416240000,-869.62280969,6.252e-05,2]
[421987962,1778416240000,-1288.72719031,6.252e-05,2]
[421987985,1778416243000,-151.0,7.14e-05,2]
[421987988,1778416243000,-456.3760811,7.14e-05,2]
[421987990,1778416243000,-300.0,7.282e-05,2]
[421987992,1778416243000,-300.0,7.282e-05,2]
[421987996,1778416243000,-300.0,7.282e-05,2]
[421987994,1778416243000,-300.0,7.282e-05,2]
[421987993,1778416243000,-300.0,7.282e-05,2]
[421988006,1778416243000,-215.46,7.658e-05,2]
[421987984,1778416243000,-532.1398266,7.14e-05,2]
[421987991,1778416243000,-300.0,7.282e-05,2]
[421987987,1778416243000,-152.0354714,7.14e-05,2]
[421987998,1778416243000,-300.0,7.282e-05,2]
[421987986,1778416243000,-151.0,7.14e-05,2]
[421987983,1778416243000,-151.0,7.14e-05,2]
[421987982,1778416243000,-325.7824685,7.14e-05,2]
[421987981,1778416243000,-456.3760811,7.139e-05,2]
[421987976,1778416243000,-151.0,7.139e-05,2]
[421987980,1778416243000,-456.3760811,7.139e-05,2]
[421987977,1778416243000,-456.3760811,7.139e-05,2]
[421987978,1778416243000,-325.7824685,7.139e-05,2]
[421987979,1778416243000,-325.662322,7.139e-05,2]
[421987975,1778416243000,-234.4179435,7.139e-05,2]
[421987989,1778416243000,-300.0,7.282e-05,2]
[421987999,1778416243000,-300.0,7.282e-05,2]
[421988017,1778416243000,-151.0,7.96e-05,2]
[421987995,1778416243000,-300.0,7.282e-05,2]
[421988023,1778416243000,-500.0,8.219e-05,2]
[421988024,1778416243000,-500.0,8.219e-05,2]
[421988021,1778416243000,-456.3760811,7.962e-05,2]
[421988022,1778416243000,-720.0,8.169e-05,2]
[421988020,1778416243000,-283.464371,7.961e-05,2]
[421988015,1778416243000,-325.9338974,7.96e-05,2]
[421987997,1778416243000,-300.0,7.282e-05,2]
[421988013,1778416243000,-456.3760811,7.96e-05,2]
[421988014,1778416243000,-456.3009281,7.96e-05,2]
[421988016,1778416243000,-151.0,7.96e-05,2]
[421988012,1778416243000,-151.6818753,7.96e-05,2]
[421988018,1778416243000,-456.1288087,7.961e-05,2]
[421988019,1778416243000,-458.8486479,7.961e-05,2]
[421988009,1778416243000,-325.7824685,7.96e-05,2]
[421988008,1778416243000,-151.0,7.96e-05,2]
[421988010,1778416243000,-151.0000001,7.96e-05,2]
[421988007,1778416243000,-151.0,7.861e-05,2]
[421988005,1778416243000,-500.0,7.648e-05,2]
[421988003,1778416243000,-300.0,7.282e-05,2]
[421988000,1778416243000,-300.0,7.282e-05,2]
[421988004,1778416243000,-600.0,7.427e-05,2]
[421988002,1778416243000,-300.0,7.282e-05,2]
[421988001,1778416243000,-300.0,7.282e-05,2]
[421988011,1778416243000,-460.8832669,7.96e-05,2]
[421988033,1778416244000,-2183.31810187,8.407e-05,2]
[421988028,1778416244000,-448.96534093,8.242e-05,2]
[421988030,1778416244000,-1957.856,8.242e-05,2]
[421988029,1778416244000,-625.06916924,8.242e-05,2]
[421988035,1778416244000,-2347.87260389,8.517e-05,2]
[421988026,1778416244000,-163.09729822,8.242e-05,2]
[421988031,1778416244000,-2030.296672,8.297e-05,2]
[421988032,1778416244000,-2105.41764886,8.352e-05,2]
[421988025,1778416244000,-639.29261813,8.219e-05,2]
[421988027,1778416244000,-162.28212529,8.242e-05,2]
[421988034,1778416244000,-2264.10087164,8.462e-05,2]
[421988046,1778416244000,-307.27292946,8.77e-05,2]
[421988038,1778416244000,-451.37761213,8.62e-05,2]
[421988040,1778416244000,-1678.53969752,8.682e-05,2]
[421988037,1778416244000,-152.0,8.6e-05,2]
[421988039,1778416244000,-2524.82941417,8.627e-05,2]
[421988041,1778416244000,-280.44265738,8.77e-05,2]
[421988042,1778416244000,-500.0,8.77e-05,2]
[421988044,1778416244000,-500.0,8.77e-05,2]
[421988043,1778416244000,-554.12943961,8.77e-05,2]
[421988045,1778416244000,-500.0,8.77e-05,2]
[421988048,1778416244000,-2416.4079311,8.771e-05,2]
[421988047,1778416244000,-41443.59233873,8.771e-05,2]
[421988036,1778416244000,-2434.74389024,8.572e-05,2]
[421988056,1778416246000,-4602.33260778,8.771e-05,2]
[421988055,1778416246000,-18745.55512987,8.771e-05,2]
[421988054,1778416246000,-3764.36323525,7.068e-05,2]
[421988058,1778416246000,-48476.2619609,8.771e-05,2]
[421988057,1778416246000,-4135.79903966,8.771e-05,2]
[421988063,1778416356000,51047.36,0.00019178,120]
[421988067,1778416589000,188.69072565,0.00014565,120]
[421988180,1778417209000,1935.24595129,0.0001917,120]
[421988702,1778417438000,-219.93258613,8.723e-05,2]
[421988696,1778417438000,-325.7824685,7.138e-05,2]
[421988697,1778417438000,-325.7282482,7.956e-05,2]
[421988699,1778417438000,-365.84537986,7.958e-05,2]
[421988698,1778417438000,-151.0,7.956e-05,2]
[421988700,1778417438000,-200.0,8.184e-05,2]
[421988708,1778417438000,-1200.0,8.752e-05,2]
[421988704,1778417438000,-300.0,8.752e-05,2]
[421988701,1778417438000,-200.83,8.184e-05,7]
[421988706,1778417438000,-300.0,8.752e-05,2]
[421988705,1778417438000,-300.0,8.752e-05,2]
[421988707,1778417438000,-300.0,8.752e-05,2]
[421988709,1778417438000,-240.98131731,8.752e-05,2]
[421988703,1778417438000,-300.0,8.752e-05,2]
[421989158,1778417447000,-300.0,8.753e-05,2]
[421989172,1778417447000,-300.0,8.753e-05,2]
[421989170,1778417447000,-300.0,8.753e-05,2]
[421989166,1778417447000,-300.0,8.753e-05,2]
[421989152,1778417447000,-300.0,8.753e-05,2]
[421989151,1778417447000,-300.0,8.753e-05,2]
[421989148,1778417447000,-169.01166422,8.752e-05,2]
[421989156,1778417447000,-300.0,8.753e-05,2]
[421989167,1778417447000,-300.0,8.753e-05,2]
[421989162,1778417447000,-300.0,8.753e-05,2]
[421989208,1778417447000,-44953.26371548,8.771e-05,2]
[421989173,1778417447000,-300.0,8.753e-05,2]
[421989154,1778417447000,-300.0,8.753e-05,2]
[421989164,1778417447000,-300.0,8.753e-05,2]
[421989179,1778417447000,-741.0,8.771e-05,2]
[421989177,1778417447000,-300.0,8.753e-05,2]
[421989175,1778417447000,-300.0,8.753e-05,2]
[421989184,1778417447000,-5476.57233196,8.771e-05,2]
[421989181,1778417447000,-855.23937794,8.771e-05,2]
[421989186,1778417447000,-4165.21162246,8.771e-05,2]
[421989160,1778417447000,-300.0,8.753e-05,2]
[421989471,1778418216000,1080.77031579,0.0001472,120]
[421989473,1778418217000,1080.77031579,0.000148,120]
[421989472,1778418217000,1080.77031579,0.0001476,120]
[421989520,1778418632000,-300.0,7.414e-05,2]
[421989514,1778418632000,-43.6239189,7.196e-05,2]
[421989513,1778418632000,-456.3760811,7.135e-05,2]
[421989515,1778418632000,-4956.3760811,7.196e-05,2]
[421989516,1778418632000,-1200.0,7.268e-05,2]
[421989517,1778418632000,-4084.03722137,7.269e-05,2]
[421989519,1778418632000,-300.0,7.414e-05,2]
[421989518,1778418632000,-372.75542735,7.379e-05,2]
[421989525,1778418632000,-1295.39955337,7.6e-05,2]
[421989532,1778418632000,-262.26134411,8.034e-05,2]
[421989522,1778418632000,-300.0,7.414e-05,2]
[421989524,1778418632000,-559.62709693,7.6e-05,2]
[421989521,1778418632000,-300.0,7.414e-05,2]
[421989527,1778418632000,-325.674028,7.955e-05,2]
[421989528,1778418632000,-454.970092,7.956e-05,2]
[421989526,1778418632000,-456.3760811,7.955e-05,2]
[421989529,1778418632000,-218.65658184,7.959e-05,2]
[421989530,1778418632000,-109.11155896,7.959e-05,2]
[421989531,1778418632000,-960.0,7.995e-05,2]
[421989523,1778418632000,-4003.06879375,7.6e-05,2]
[421989688,1778418641000,-855.23937794,8.571e-05,2]
[421989680,1778418641000,-300.0,8.034e-05,2]
[421989682,1778418641000,-300.0,8.034e-05,2]
[421989666,1778418641000,-300.0,8.034e-05,2]
[421989664,1778418641000,-300.0,8.034e-05,2]
[421989656,1778418641000,-37.73865589,8.034e-05,2]
[421989658,1778418641000,-300.0,8.034e-05,2]
[421989662,1778418641000,-300.0,8.034e-05,2]
[421989668,1778418641000,-300.0,8.034e-05,2]
[421989660,1778418641000,-300.0,8.034e-05,2]
[421989678,1778418641000,-300.0,8.034e-05,2]
[421989684,1778418641000,-420.0,8.155e-05,2]
[421989672,1778418641000,-300.0,8.034e-05,2]
[421989686,1778418641000,-152.0,8.184e-05,7]
[421989676,1778418641000,-300.0,8.034e-05,2]
[421989703,1778418641000,-443.0,8.771e-05,2]
[421989695,1778418641000,-163.13880663,8.725e-05,2]
[421989699,1778418641000,-741.0,8.771e-05,2]
[421989693,1778418641000,-332.9928779,8.686e-05,2]
[421989697,1778418641000,-600.0,8.748e-05,2]
[421989691,1778418641000,-5900.5448204,8.686e-05,2]
[421989690,1778418641000,-1022.18363084,8.578e-05,2]
[421989670,1778418641000,-300.0,8.034e-05,2]
[421989671,1778418641000,-300.0,8.034e-05,2]
[421989674,1778418641000,-300.0,8.034e-05,2]
[421989701,1778418641000,-185.0,8.771e-05,2]
[421989727,1778418642000,-605.12253272,8.971e-05,2]
[421989734,1778418642000,-200.0,9.156e-05,2]
[421989732,1778418642000,-719.63555209,9.139e-05,2]
[421989730,1778418642000,-611.35976261,9.067e-05,2]
[421989720,1778418642000,-2471.34102346,8.803e-05,2]
[421989728,1778418642000,-163.13880663,8.994e-05,2]
[421989705,1778418642000,-475.506,8.771e-05,2]
[421989716,1778418642000,-155.0,8.803e-05,2]
[421989714,1778418642000,-296.0,8.803e-05,2]
[421989711,1778418642000,-744.0,8.803e-05,2]
[421989709,1778418642000,-151.0,8.781e-05,2]
[421989707,1778418642000,-1642.39549272,8.771e-05,2]
[421989738,1778418642000,-444.0,9.169e-05,2]
[421989718,1778418642000,-2021.65897654,8.803e-05,2]
[421989736,1778418642000,-286.40916921,9.156e-05,2]
[421989759,1778418642000,-160.0,9.769e-05,4]
[421989722,1778418642000,-1936.71955952,8.82e-05,2]
[421989768,1778418642000,-4493.0,9.803e-05,2]
[421989765,1778418642000,-155.0,9.803e-05,2]
[421989750,1778418642000,-439.85140427,9.379e-05,2]
[421989761,1778418642000,-744.0,9.803e-05,2]
[421989763,1778418642000,-296.0,9.803e-05,2]
[421989744,1778418642000,-163.13880662,9.273e-05,2]
[421989748,1778418642000,-200.0,9.321e-05,2]
[421989746,1778418642000,-151.0,9.321e-05,2]
[421989757,1778418642000,-720.0,9.622e-05,2]
[421989752,1778418642000,-2168.30067484,9.425e-05,2]
[421989740,1778418642000,-666.0,9.169e-05,2]
[421989725,1778418642000,-255.52016635,8.971e-05,2]
[421989770,1778418642000,-6074.64320488,9.896e-05,2]
[421989742,1778418642000,-888.0,9.169e-05,2]
[421989755,1778418642000,-160.0,9.562e-05,3]
[421989907,1778418643000,-2907.59361649,9.896e-05,2]
[421989932,1778418646000,-25274.34669103,9.896e-05,2]
[421989930,1778418646000,-1094.93032848,8.771e-05,2]
[421989931,1778418646000,-14191.71299186,9.896e-05,2]
[421989964,1778418798000,20682.19994122,0.00019178,120]
[421990014,1778418859000,205085.95008746,0.00019111,120]
[421990336,1778419735000,6000.0,0.00019178,120]
[421990373,1778419832000,-282.43889699,8.029e-05,2]
[421990457,1778419844000,-616.94145189,7.949e-05,2]
[421990682,1778419846000,-1659.29854811,7.949e-05,2]
[421990691,1778420551000,300.0,8.559e-05,30]
[421990856,1778421038000,-165365.61597366,8.171e-05,2]
[421990852,1778421038000,-356.50329071,7.226e-05,2]
[421990848,1778421038000,-5000.0,7.046e-05,2]
[421990854,1778421038000,-282.43889699,8.171e-05,2]
[421990850,1778421038000,-4652.36723844,7.117e-05,2]
[421991181,1778421046000,-3117.76203223,8.088e-05,2]
[421991183,1778421046000,-187.89060773,8.17e-05,2]
[421991188,1778421046000,-6573.07271525,8.171e-05,2]
[421991182,1778421046000,-500.0,8.17e-05,2]
[421991187,1778421046000,-634.71155464,8.17e-05,2]
[421991185,1778421046000,-500.0,8.17e-05,2]
[421991184,1778421046000,-500.0,8.17e-05,2]
[421991186,1778421046000,-500.0,8.17e-05,2]
[421991204,1778421550000,200.0,9e-05,30]
[421991205,1778421605000,2185205.51634194,0.00019178,120]
[421991206,1778421772000,10000.0,0.00010999,30]
[421991246,1778422233000,-373.3404803,6.997e-05,2]
[421991245,1778422233000,-5000.0,6.875e-05,2]
[421991247,1778422233000,-423.75174984,7.085e-05,2]
[421991249,1778422233000,-325.1590258,7.962e-05,2]
[421991248,1778422233000,-200.0,7.791e-05,2]
[421991250,1778422233000,-300.0,8.069e-05,2]
[421991253,1778422233000,-500.0,8.07e-05,2]
[421991251,1778422233000,-500.0,8.07e-05,2]
[421991252,1778422233000,-500.0,8.07e-05,2]
[421991255,1778422233000,-212.00719715,8.07e-05,2]
[421991256,1778422233000,-500.0,8.07e-05,2]
[421991258,1778422233000,-500.0,8.07e-05,2]
[421991259,1778422233000,-300.0,8.07e-05,2]
[421991261,1778422233000,-9354.07902817,8.071e-05,2]
[421991257,1778422233000,-500.0,8.07e-05,2]
[421991260,1778422233000,-500.0,8.07e-05,2]
[421991254,1778422233000,-500.0,8.07e-05,2]
[421991300,1778422238000,-300.0,8.639e-05,2]
[421991295,1778422238000,-300.0,8.639e-05,2]
[421991292,1778422238000,-300.0,8.639e-05,2]
[421991296,1778422238000,-300.0,8.639e-05,2]
[421991294,1778422238000,-300.0,8.639e-05,2]
[421991293,1778422238000,-300.0,8.639e-05,2]
[421991288,1778422238000,-152.0,8.182e-05,7]
[421991290,1778422238000,-1610.3603391,8.486e-05,2]
[421991286,1778422238000,-1084.2650586,8.071e-05,2]
[421991297,1778422238000,-300.0,8.639e-05,2]
[421991287,1778422238000,-258.62426558,8.18e-05,2]
[421991289,1778422238000,-152.0,8.182e-05,7]
[421991285,1778422238000,-159531.64216505,8.071e-05,2]
[421991291,1778422238000,-1084.2650586,8.542e-05,2]
[421991299,1778422238000,-300.0,8.639e-05,2]
[421991301,1778422238000,-300.0,8.639e-05,2]
[421991302,1778422238000,-300.0,8.639e-05,2]
[421991298,1778422238000,-300.0,8.639e-05,2]
[421991316,1778422238000,-120403.88146502,8.82e-05,2]
[421991315,1778422238000,-117830.61337126,8.82e-05,2]
[421991309,1778422238000,-592.391,8.662e-05,2]
[421991312,1778422238000,-443.0,8.662e-05,2]
[421991311,1778422238000,-185.0,8.662e-05,2]
[421991310,1778422238000,-749.0,8.662e-05,2]
[421991314,1778422238000,-500.0,8.755e-05,2]
[421991307,1778422238000,-600.0,8.639e-05,2]
[421991308,1778422238000,-2224.459,8.662e-05,2]
[421991305,1778422238000,-300.0,8.639e-05,2]
[421991306,1778422238000,-300.0,8.639e-05,2]
[421991304,1778422238000,-300.0,8.639e-05,2]
[421991303,1778422238000,-300.0,8.639e-05,2]
[421991313,1778422238000,-58646.85668769,8.663e-05,2]
[421991331,1778422246000,-2101.21269961,8.82e-05,2]
[421991330,1778422246000,-1203.39743932,8.732e-05,2]
[421991443,1778423432000,-300.0,6.734e-05,2]
[421991442,1778423432000,-300.0,6.734e-05,2]
[421991440,1778423432000,-300.0,6.734e-05,2]
[421991438,1778423432000,-300.0,6.734e-05,2]
[421991434,1778423432000,-300.0,6.734e-05,2]
[421991432,1778423432000,-300.0,6.734e-05,2]
[421991429,1778423432000,-167.018395,6.67e-05,2]
[421991426,1778423432000,-372.75797761,6.505e-05,2]
[421991410,1778423432000,-4493.41032927,6.211e-05,2]
[421991420,1778423432000,-5000.0,6.28e-05,2]
[421991431,1778423432000,-300.0,6.734e-05,2]
[421991422,1778423432000,-300.0,6.406e-05,2]
[421991424,1778423432000,-300.0,6.406e-05,2]
[421991418,1778423432000,-204.2498721,6.274e-05,2]
[421991416,1778423432000,-506.58967073,6.211e-05,2]
[421991407,1778423432000,-1078.47346362,6.149e-05,2]
[421991427,1778423432000,-1200.0,6.601e-05,2]
[421991444,1778423432000,-300.0,6.734e-05,2]
[421991436,1778423432000,-300.0,6.734e-05,2]
[421991446,1778423432000,-300.0,6.734e-05,2]
[421991464,1778423432000,-16771.81932293,7.871e-05,2]
[421991456,1778423432000,-500.0,7.87e-05,2]
[421991457,1778423432000,-500.0,7.87e-05,2]
[421991459,1778423432000,-500.0,7.87e-05,2]
[421991462,1778423432000,-500.0,7.87e-05,2]
[421991455,1778423432000,-500.0,7.87e-05,2]
[421991452,1778423432000,-720.0,7.554e-05,2]
[421991458,1778423432000,-245.77857746,7.87e-05,2]
[421991463,1778423432000,-305.82792088,7.87e-05,2]
[421991460,1778423432000,-500.0,7.87e-05,2]
[421991454,1778423432000,-505.95826329,7.87e-05,2]
[421991453,1778423432000,-500.0,7.87e-05,2]
[421991451,1778423432000,-600.0,6.868e-05,2]
[421991461,1778423432000,-500.0,7.87e-05,2]
[421991449,1778423432000,-300.0,6.734e-05,2]
[421991445,1778423432000,-300.0,6.734e-05,2]
[421991447,1778423432000,-300.0,6.734e-05,2]
[421991450,1778423432000,-300.0,6.734e-05,2]
[421991448,1778423432000,-300.0,6.734e-05,2]
[421991542,1778423440000,-304.0,7.792e-05,2]
[421991558,1778423443000,-603.83541501,7.871e-05,2]
[421991557,1778423443000,-1203.39743932,7.792e-05,2]
[421991559,1778423444000,-1541.35527737,7.871e-05,2]
[421991939,1778423447000,-3341.65898748,7.871e-05,2]
[421992259,1778423758000,152.0,0.00010904,30]
[421992260,1778423778000,152.0,0.00010904,30]
[421992409,1778424647000,-4134.264399,7.6e-05,2]
[421992410,1778424647000,-500.0,7.6e-05,2]
[421992412,1778424647000,-374.85484426,7.676e-05,2]
[421992414,1778424647000,-2838.62293984,7.797e-05,2]
[421992413,1778424647000,-710.36610106,7.797e-05,2]
[421992417,1778424647000,-110.42051384,8.027e-05,2]
[421992416,1778424647000,-300.0,8.027e-05,2]
[421992415,1778424647000,-300.0,8.027e-05,2]
[421992411,1778424647000,-365.735601,7.6e-05,2]
[421992515,1778425831000,-311.8070692,7.037e-05,2]
[421992509,1778425831000,-1200.0,7.035e-05,2]
[421992511,1778425831000,-300.0,7.036e-05,2]
[421992498,1778425831000,-3278.87760864,6.358e-05,2]
[421992513,1778425831000,-300.0,7.036e-05,2]
[421992503,1778425831000,-234.90160104,6.422e-05,2]
[421992501,1778425831000,-1721.12239136,6.358e-05,2]
[421992505,1778425831000,-374.19198576,6.655e-05,2]
[421992507,1778425831000,-441.89882406,6.689e-05,2]
[421992521,1778425831000,-300.0,7.287e-05,2]
[421992530,1778425831000,-300.0,7.287e-05,2]
[421992533,1778425831000,-119.92296738,7.287e-05,2]
[421992528,1778425831000,-300.0,7.287e-05,2]
[421992519,1778425831000,-300.0,7.287e-05,2]
[421992522,1778425831000,-300.0,7.287e-05,2]
[421992525,1778425831000,-300.0,7.287e-05,2]
[421992517,1778425831000,-1245.98104852,7.037e-05,2]
[421992527,1778425831000,-300.0,7.287e-05,2]
[421992604,1778425838000,-300.0,7.287e-05,2]
[421992605,1778425838000,-300.0,7.287e-05,2]
[421992607,1778425838000,-300.0,7.287e-05,2]
[421992613,1778425838000,-150.00883819,8.182e-05,7]
[421992603,1778425838000,-180.07703262,7.287e-05,2]
[421992612,1778425838000,-59167.97526393,7.6e-05,2]
[421992606,1778425838000,-300.0,7.287e-05,2]
[421992609,1778425838000,-184.03960024,7.287e-05,2]
[421992608,1778425838000,-300.0,7.287e-05,2]
[421992610,1778425838000,-115.96039976,7.287e-05,2]
[421992611,1778425838000,-300.0,7.287e-05,2]
[421992619,1778425840000,-8156.49737407,8.5e-05,2]
[421992618,1778425840000,-1.99116181,8.182e-05,7]
[421992620,1778425840000,-1047.72134231,8.5e-05,2]
[421992631,1778425843000,-1352.99176546,8.5e-05,2]
[421992646,1778425846000,-308.03524684,8.533e-05,2]
[421992642,1778425846000,-7898.78951816,8.5e-05,2]
[421992643,1778425846000,-232.597,8.518e-05,2]
[421992645,1778425846000,-443.0,8.533e-05,2]
[421992644,1778425846000,-650.55903516,8.518e-05,2]
[421992647,1778425846000,-432.96475316,8.533e-05,2]
[421992649,1778425846000,-442.02657071,8.639e-05,2]
[421992650,1778425846000,-1766.33817656,8.639e-05,2]
[421992651,1778425846000,-152.0,8.641e-05,2]
[421992655,1778425846000,-17635.36839062,9.164e-05,2]
[421992652,1778425846000,-441.54654319,8.655e-05,2]
[421992654,1778425846000,-650.55903516,8.889e-05,2]
[421992653,1778425846000,-600.0,8.669e-05,2]
[421992648,1778425846000,-185.0,8.533e-05,2]
[421992871,1778427038000,-983.86817247,8.196e-05,2]
[421992863,1778427038000,-500.0,8.129e-05,2]
[421992864,1778427038000,-281.52342541,8.129e-05,2]
[421992868,1778427038000,-354025.15432839,8.13e-05,2]
[421992867,1778427038000,-5496.38546012,8.13e-05,2]
[421992862,1778427038000,-367.31421343,8.129e-05,2]
[421992869,1778427038000,-12323.89280541,8.13e-05,2]
[421992866,1778427038000,-151.0,8.13e-05,2]
[421992865,1778427038000,-983.86817248,8.13e-05,2]
[421992859,1778427038000,-500.0,8.129e-05,2]
[421992854,1778427038000,-300.0,8.128e-05,2]
[421992856,1778427038000,-2012.20478813,8.129e-05,2]
[421992870,1778427038000,-152.0,8.182e-05,7]
[421992855,1778427038000,-480.0,8.128e-05,2]
[421992861,1778427038000,-500.0,8.129e-05,2]
[421992852,1778427038000,-472.473,8.065e-05,2]
[421992853,1778427038000,-187.61747372,8.065e-05,2]
[421992860,1778427038000,-500.0,8.129e-05,2]
[421992851,1778427038000,-767.6686077,7.931e-05,2]
[421992850,1778427038000,-382.23091786,7.774e-05,2]
[421992849,1778427038000,-5000.0,7.618e-05,2]
[421992857,1778427038000,-500.0,8.129e-05,2]